[Event "FIDE World Rapid Chess Championship 2021"]
[White "Bartel, Mateusz"]
[Black "Aditya, Mittal"]
[WhiteFideId "1112635"]
[BlackFideId "35042025"]
[WhiteElo "2543"]
[BlackElo "1488"]
[Result "1/2-1/2"]
[Round "03"]
[TimeControl "900+10"]
[Date "2021.12.26"]
[WhiteClock "0:02:55"]
[BlackClock "0:00:57"]

1. e4 {[%clk 0:15:00]}  e5 {[%clk 0:15:00]} 2. Nf3 {[%clk 0:15:19]}  Nc6 {[%clk 0:15:00]} 3. Bc4 {[%clk 0:15:19]}  Bc5 {[%clk 0:15:00]} 4. c3 {[%clk 0:15:19]}  Nf6 {[%clk 0:15:11]} 5. d3 {[%clk 0:15:59]}  d6 {[%clk 0:15:11]} 6. O-O {[%clk 0:15:59]}  h6 {[%clk 0:15:11]} 7. Nbd2 {[%clk 0:15:59]}  a5 {[%clk 0:15:11]} 8. Re1 {[%clk 0:15:59]}  O-O {[%clk 0:15:11]} 9. Nf1 {[%clk 0:15:59]}  a4 {[%clk 0:15:11]} 10. Ng3 {[%clk 0:15:59]}  Ra5 {[%clk 0:15:11]} 11. b4 {[%clk 0:15:37]}  axb3 {[%clk 0:12:38]} 12. Bxb3 {[%clk 0:15:37]}  Be6 {[%clk 0:12:38]} 13. Bb2 {[%clk 0:15:37]}  Bb6 {[%clk 0:12:09]} 14. d4 {[%clk 0:15:37]}  Bg4 {[%clk 0:12:07]} 15. Re3 {[%clk 0:13:12]}  d5 {[%clk 0:12:07]} 16. exd5 {[%clk 0:12:57]}  Nxd5 {[%clk 0:09:33]} 17. Re4 {[%clk 0:11:06]}  Nf6 {[%clk 0:09:33]} 18. Re3 {[%clk 0:11:15]}  exd4 {[%clk 0:09:07]} 19. cxd4 {[%clk 0:11:15]}  Bxf3 {[%clk 0:07:56]} 20. Qxf3 {[%clk 0:10:29]}  Nxd4 {[%clk 0:07:13]} 21. Bxd4 {[%clk 0:10:29]}  Qxd4 {[%clk 0:07:13]} 22. Rd1 {[%clk 0:10:29]}  Qg4 {[%clk 0:07:13]} 23. Re7 {[%clk 0:10:29]}  Qxf3 {[%clk 0:07:34]} 24. gxf3 {[%clk 0:09:46]}  g6 {[%clk 0:07:34]} 25. Kg2 {[%clk 0:09:54]}  Kg7 {[%clk 0:06:43]} 26. f4 {[%clk 0:09:54]}  Raa8 {[%clk 0:06:14]} 27. Kf3 {[%clk 0:09:37]}  Rae8 {[%clk 0:05:01]} 28. Re5 {[%clk 0:09:37]}  Rd8 {[%clk 0:05:01]} 29. Rxd8 {[%clk 0:08:00]}  Rxd8 {[%clk 0:04:51]} 30. Re7 {[%clk 0:08:00]}  Rd7 {[%clk 0:04:51]} 31. Rxd7 {[%clk 0:07:03]}  Nxd7 {[%clk 0:05:08]} 32. f5 {[%clk 0:07:03]}  Ne5+ {[%clk 0:05:08]} 33. Kg2 {[%clk 0:07:03]}  Kf6 {[%clk 0:05:16]} 34. fxg6 {[%clk 0:05:58]}  fxg6 {[%clk 0:04:11]} 35. f4 {[%clk 0:05:58]}  Nd3 {[%clk 0:04:11]} 36. Kf3 {[%clk 0:05:58]}  c6 {[%clk 0:04:11]} 37. Bc4 {[%clk 0:05:58]}  Nb4 {[%clk 0:03:36]} 38. Ke4 {[%clk 0:05:56]}  Bf2 {[%clk 0:03:36]} 39. Ne2 {[%clk 0:05:56]}  b5 {[%clk 0:03:36]} 40. Bg8 {[%clk 0:06:09]}  Na6 {[%clk 0:03:07]} 41. Kf3 {[%clk 0:06:09]}  Bb6 {[%clk 0:03:07]} 42. Ng3 {[%clk 0:06:09]}  c5 {[%clk 0:02:29]} 43. Ne4+ {[%clk 0:06:09]}  Kg7 {[%clk 0:02:29]} 44. Be6 {[%clk 0:06:09]}  Nc7 {[%clk 0:02:29]} 45. f5 {[%clk 0:06:16]}  gxf5 {[%clk 0:02:11]} 46. Bxf5 {[%clk 0:06:16]}  c4 {[%clk 0:02:11]} 47. h3 {[%clk 0:04:54]}  Bd4 {[%clk 0:01:58]} 48. Ke2 {[%clk 0:04:54]}  Be5 {[%clk 0:01:29]} 49. Bd7 {[%clk 0:04:41]}  Kf7 {[%clk 0:01:29]} 50. Kd2 {[%clk 0:04:41]}  Ke7 {[%clk 0:01:29]} 51. Bc6 {[%clk 0:04:41]}  Ke6 {[%clk 0:01:35]} 52. Kc2 {[%clk 0:03:51]}  Bd4 {[%clk 0:01:35]} 53. a3 {[%clk 0:03:47]}  Ke5 {[%clk 0:01:29]} 54. Nd2 {[%clk 0:03:47]}  Be3 {[%clk 0:01:36]} 55. Ne4 {[%clk 0:01:56]}  Ne6 {[%clk 0:01:14]} 56. Bb7 {[%clk 0:01:57]}  Nd4+ {[%clk 0:01:14]} 57. Kb2 {[%clk 0:01:57]}  Bf4 {[%clk 0:01:14]} 58. Ba8 {[%clk 0:01:57]}  Be3 {[%clk 0:01:14]} 59. Bb7 {[%clk 0:01:57]}  Ne2 {[%clk 0:00:27]} 60. Kc2 {[%clk 0:01:39]}  Nf4 {[%clk 0:00:27]} 61. Nc3 {[%clk 0:01:39]}  Nxh3 {[%clk 0:00:27]} 62. Nxb5 {[%clk 0:01:39]}  h5 {[%clk 0:00:27]} 63. Kc3 {[%clk 0:01:39]}  h4 {[%clk 0:00:27]} 64. Kxc4 {[%clk 0:01:39]}  Nf2 {[%clk 0:00:27]} 65. Nc3 {[%clk 0:01:39]}  h3 {[%clk 0:00:44]} 66. Ne2 {[%clk 0:02:12]}  h2 {[%clk 0:00:44]} 67. Ng3 {[%clk 0:02:12]}  Bf4 {[%clk 0:00:44]} 68. Nf1 {[%clk 0:02:12]}  h1=Q {[%clk 0:00:57]} 69. Bxh1 {[%clk 0:02:55]}  Nxh1 {[%clk 0:00:57]} 70. a4 {[%clk 0:02:55]}  Nf2 {[%clk 0:00:57]} 71. a5 {[%clk 0:02:55]}  Kd6 {[%clk 0:00:57]} 72. Kd4 {[%clk 0:02:55]}  Kc6 {[%clk 0:00:57]} 73. Ne3 {[%clk 0:02:55]}  Kb5 {[%clk 0:00:57]} 74. Nd5 {[%clk 0:02:55]}  Bd6 {[%clk 0:00:57]} 75. Nc3+ {[%clk 0:02:55]}  Kxa5 {[%clk 0:00:57]} 1/2-1/2


[Site "http://www.Chess.com"]

[Event "FIDE World Rapid Chess Championship 2021"]
[White "Karjakin, Sergey"]
[Black "Nguyen, Thai Dai Van"]
[WhiteFideId "14109603"]
[BlackFideId "358878"]
[WhiteElo "2757"]
[BlackElo "2488"]
[Result "1/2-1/2"]
[Round "03"]
[TimeControl "900+10"]
[Date "2021.12.26"]
[WhiteClock "0:00:39"]
[BlackClock "0:00:51"]

1. d4 {[%clk 0:15:00]}  Nf6 {[%clk 0:15:26]} 2. c4 {[%clk 0:15:26]}  e6 {[%clk 0:15:26]} 3. Nf3 {[%clk 0:15:26]}  d5 {[%clk 0:15:26]} 4. Nc3 {[%clk 0:15:26]}  Nbd7 {[%clk 0:15:26]} 5. Qc2 {[%clk 0:15:48]}  dxc4 {[%clk 0:15:28]} 6. e4 {[%clk 0:15:48]}  c5 {[%clk 0:15:28]} 7. Bxc4 {[%clk 0:15:48]}  cxd4 {[%clk 0:15:28]} 8. Nxd4 {[%clk 0:15:48]}  Qc7 {[%clk 0:15:28]} 9. Qe2 {[%clk 0:15:48]}  a6 {[%clk 0:15:28]} 10. O-O {[%clk 0:15:48]}  Bd6 {[%clk 0:15:28]} 11. f4 {[%clk 0:15:40]}  Nb6 {[%clk 0:15:01]} 12. Bb3 {[%clk 0:14:19]}  e5 {[%clk 0:15:01]} 13. Nf3 {[%clk 0:13:44]}  Bg4 {[%clk 0:06:21]} 14. fxe5 {[%clk 0:10:37]}  Bxe5 {[%clk 0:06:12]} 15. Qf2 {[%clk 0:10:03]}  Bxf3 {[%clk 0:06:13]} 16. gxf3 {[%clk 0:10:03]}  O-O {[%clk 0:06:13]} 17. Ne2 {[%clk 0:09:35]}  Rfe8 {[%clk 0:05:35]} 18. Be3 {[%clk 0:07:49]}  Nc4 {[%clk 0:02:25]} 19. Rac1 {[%clk 0:07:49]}  b5 {[%clk 0:02:25]} 20. Bxc4 {[%clk 0:07:49]}  bxc4 {[%clk 0:02:25]} 21. b3 {[%clk 0:07:49]}  Qa5 {[%clk 0:02:50]} 22. Rxc4 {[%clk 0:06:33]}  Qxa2 {[%clk 0:02:28]} 23. Nd4 {[%clk 0:06:33]}  Qxf2+ {[%clk 0:02:36]} 24. Bxf2 {[%clk 0:04:58]}  Rab8 {[%clk 0:02:36]} 25. b4 {[%clk 0:04:58]}  Bf4 {[%clk 0:01:22]} 26. Nc6 {[%clk 0:04:27]}  Rb5 {[%clk 0:01:22]} 27. Bc5 {[%clk 0:04:27]}  Nd7 {[%clk 0:01:22]} 28. Ne7+ {[%clk 0:04:19]}  Kh8 {[%clk 0:00:59]} 29. Nd5 {[%clk 0:04:19]}  Bb8 {[%clk 0:00:59]} 30. Bd4 {[%clk 0:04:19]}  Ne5 {[%clk 0:00:24]} 31. Rc3 {[%clk 0:04:25]}  Bd6 {[%clk 0:00:24]} 32. Rfc1 {[%clk 0:04:25]}  Rbb8 {[%clk 0:00:24]} 33. Kg2 {[%clk 0:04:17]}  f6 {[%clk 0:00:31]} 34. Ba7 {[%clk 0:02:03]}  Rb7 {[%clk 0:00:33]} 35. Rc8 {[%clk 0:02:03]}  Rg8 {[%clk 0:00:33]} 36. Rxg8+ {[%clk 0:02:03]}  Kxg8 {[%clk 0:00:33]} 37. Rc8+ {[%clk 0:02:03]}  Kf7 {[%clk 0:00:33]} 38. Bc5 {[%clk 0:02:03]}  Rb8 {[%clk 0:00:33]} 39. Rxb8 {[%clk 0:02:22]}  Bxb8 {[%clk 0:00:43]} 40. f4 {[%clk 0:00:48]}  Nd3 {[%clk 0:00:51]} 41. Kf3 {[%clk 0:00:48]}  g5 {[%clk 0:00:51]} 42. fxg5 {[%clk 0:00:48]}  fxg5 {[%clk 0:00:51]} 43. Be7 {[%clk 0:00:48]}  Kg6 {[%clk 0:01:01]} 44. h3 {[%clk 0:00:33]}  h5 {[%clk 0:01:01]} 45. Ke3 {[%clk 0:00:33]}  Ne5 {[%clk 0:01:01]} 46. Bd8 {[%clk 0:00:33]}  Nc6 {[%clk 0:01:01]} 47. Bb6 {[%clk 0:00:28]}  Bd6 {[%clk 0:00:25]} 48. Ba5 {[%clk 0:00:28]}  Kf7 {[%clk 0:00:22]} 49. Kf3 {[%clk 0:00:14]}  Ke6 {[%clk 0:00:22]} 50. Ke3 {[%clk 0:00:14]}  Ke5 {[%clk 0:00:22]} 51. Kd3 {[%clk 0:00:14]}  Ke6 {[%clk 0:00:22]} 52. Ke3 {[%clk 0:00:14]}  Ke5 {[%clk 0:00:22]} 53. Kd3 {[%clk 0:00:14]}  g4 {[%clk 0:00:22]} 54. hxg4 {[%clk 0:00:14]}  hxg4 {[%clk 0:00:22]} 55. Ke3 {[%clk 0:00:14]}  Nd4 {[%clk 0:00:22]} 56. Kd3 {[%clk 0:00:14]}  g3 {[%clk 0:00:24]} 57. Ke3 {[%clk 0:00:25]}  g2 {[%clk 0:00:24]} 58. Kf2 {[%clk 0:00:31]}  Kxe4 {[%clk 0:00:24]} 59. Nf6+ {[%clk 0:00:31]}  Kf5 {[%clk 0:00:26]} 60. Nd7 {[%clk 0:00:15]}  Nc6 {[%clk 0:00:24]} 61. Kxg2 {[%clk 0:00:15]}  Ke6 {[%clk 0:00:51]} 62. Nb6 {[%clk 0:00:39]}  Bxb4 {[%clk 0:00:51]} 63. Bxb4 {[%clk 0:00:39]}  Nxb4 {[%clk 0:00:51]} 64. Kf3 {[%clk 0:00:39]}  Kd6 {[%clk 0:00:51]} 65. Ke2 {[%clk 0:00:39]}  Kc5 {[%clk 0:00:51]} 66. Na4+ {[%clk 0:00:39]}  Kc4 {[%clk 0:00:51]} 67. Kd2 {[%clk 0:00:39]}  a5 {[%clk 0:00:51]} 68. Kc1 {[%clk 0:00:39]} 1/2-1/2


[Site "http://www.Chess.com"]

[Event "FIDE World Rapid Chess Championship 2021"]
[White "Gajewski, Grzegorz"]
[Black "Oparin, Grigoriy"]
[WhiteFideId "1116207"]
[BlackFideId "24125890"]
[WhiteElo "2496"]
[BlackElo "2725"]
[Result "1/2-1/2"]
[Round "03"]
[TimeControl "900+10"]
[Date "2021.12.26"]
[WhiteClock "0:00:40"]
[BlackClock "0:00:34"]

1. e4 {[%clk 0:15:00]}  e5 {[%clk 0:15:15]} 2. Nf3 {[%clk 0:15:26]}  Nc6 {[%clk 0:15:15]} 3. Bb5 {[%clk 0:15:26]}  a6 {[%clk 0:15:15]} 4. Ba4 {[%clk 0:15:26]}  Nf6 {[%clk 0:15:39]} 5. O-O {[%clk 0:15:59]}  Be7 {[%clk 0:15:39]} 6. Re1 {[%clk 0:15:59]}  b5 {[%clk 0:15:39]} 7. Bb3 {[%clk 0:15:59]}  O-O {[%clk 0:15:39]} 8. d4 {[%clk 0:15:59]}  d6 {[%clk 0:15:39]} 9. c3 {[%clk 0:15:59]}  Bg4 {[%clk 0:15:39]} 10. d5 {[%clk 0:15:59]}  Na5 {[%clk 0:15:39]} 11. Bc2 {[%clk 0:15:59]}  c6 {[%clk 0:15:39]} 12. h3 {[%clk 0:15:59]}  Bc8 {[%clk 0:15:39]} 13. dxc6 {[%clk 0:15:59]}  Qc7 {[%clk 0:15:39]} 14. Nbd2 {[%clk 0:16:10]}  Qxc6 {[%clk 0:15:30]} 15. Nf1 {[%clk 0:16:10]}  Be6 {[%clk 0:15:30]} 16. Ng5 {[%clk 0:15:31]}  Bd7 {[%clk 0:15:56]} 17. Ng3 {[%clk 0:15:31]}  h6 {[%clk 0:15:56]} 18. Nf3 {[%clk 0:15:31]}  Rfe8 {[%clk 0:15:56]} 19. Nh4 {[%clk 0:15:31]}  Bf8 {[%clk 0:15:29]} 20. Nhf5 {[%clk 0:15:20]}  Nc4 {[%clk 0:15:29]} 21. a4 {[%clk 0:15:07]}  Rad8 {[%clk 0:10:00]} 22. b3 {[%clk 0:14:55]}  Nb6 {[%clk 0:08:39]} 23. a5 {[%clk 0:13:47]}  Bxf5 {[%clk 0:08:39]} 24. Nxf5 {[%clk 0:13:47]}  Nbd7 {[%clk 0:08:39]} 25. c4 {[%clk 0:12:00]}  bxc4 {[%clk 0:08:23]} 26. bxc4 {[%clk 0:11:59]}  Qxc4 {[%clk 0:08:23]} 27. Bb3 {[%clk 0:11:59]}  Qc7 {[%clk 0:08:23]} 28. Ba3 {[%clk 0:11:57]}  Nc5 {[%clk 0:08:38]} 29. Bxc5 {[%clk 0:09:11]}  Qxc5 {[%clk 0:08:38]} 30. Qe2 {[%clk 0:09:19]}  d5 {[%clk 0:07:14]} 31. exd5 {[%clk 0:08:15]}  Nxd5 {[%clk 0:07:14]} 32. Qxa6 {[%clk 0:07:22]}  e4 {[%clk 0:06:24]} 33. Qb7 {[%clk 0:07:22]}  Ne7 {[%clk 0:04:33]} 34. Ng3 {[%clk 0:06:51]}  Rb8 {[%clk 0:04:12]} 35. Qd7 {[%clk 0:06:51]}  Red8 {[%clk 0:04:00]} 36. Qa4 {[%clk 0:04:55]}  Qb4 {[%clk 0:03:07]} 37. Qxb4 {[%clk 0:04:55]}  Rxb4 {[%clk 0:02:10]} 38. Re3 {[%clk 0:04:55]}  Nc6 {[%clk 0:02:10]} 39. Nxe4 {[%clk 0:04:03]}  Nd4 {[%clk 0:02:05]} 40. Bd1 {[%clk 0:04:03]}  Ra8 {[%clk 0:02:05]} 41. Nc3 {[%clk 0:03:43]}  Ra6 {[%clk 0:00:47]} 42. Re8 {[%clk 0:03:01]}  g6 {[%clk 0:00:47]} 43. Nd5 {[%clk 0:03:01]}  Rb5 {[%clk 0:00:31]} 44. Rd8 {[%clk 0:02:10]}  Ne6 {[%clk 0:00:31]} 45. Nf6+ {[%clk 0:01:23]}  Kg7 {[%clk 0:00:36]} 46. Ne8+ {[%clk 0:01:23]}  Kg8 {[%clk 0:00:36]} 47. Rd7 {[%clk 0:01:23]}  Rbxa5 {[%clk 0:00:36]} 48. Rxa5 {[%clk 0:01:23]}  Rxa5 {[%clk 0:00:36]} 49. Bb3 {[%clk 0:01:23]}  Re5 {[%clk 0:00:36]} 50. Nf6+ {[%clk 0:01:52]}  Kg7 {[%clk 0:00:34]} 51. Ng4 {[%clk 0:01:52]}  Re1+ {[%clk 0:00:34]} 52. Kh2 {[%clk 0:01:52]}  Bc5 {[%clk 0:00:33]} 53. f4 {[%clk 0:01:21]}  Bg1+ {[%clk 0:00:33]} 54. Kg3 {[%clk 0:01:21]}  h5 {[%clk 0:00:33]} 55. Bxe6 {[%clk 0:01:21]}  Rxe6 {[%clk 0:00:33]} 56. Ne5 {[%clk 0:01:21]}  Rf6 {[%clk 0:00:33]} 57. Kf3 {[%clk 0:01:21]}  Bh2 {[%clk 0:00:34]} 58. g3 {[%clk 0:00:45]}  Bg1 {[%clk 0:00:34]} 59. Ke4 {[%clk 0:00:45]}  Bh2 {[%clk 0:00:34]} 60. Kf3 {[%clk 0:00:45]}  Bg1 {[%clk 0:00:34]} 61. Ke4 {[%clk 0:00:40]} 1/2-1/2


[Site "http://www.Chess.com"]

[Event "FIDE World Rapid Chess Championship 2021"]
[White "Puranik, Abhimanyu"]
[Black "Harikrishna, Pentala"]
[WhiteFideId "5061245"]
[BlackFideId "5007003"]
[WhiteElo "2472"]
[BlackElo "2705"]
[Result "1/2-1/2"]
[Round "03"]
[TimeControl "900+10"]
[Date "2021.12.26"]
[WhiteClock "0:01:19"]
[BlackClock "0:00:36"]

1. d4 {[%clk 0:15:00]}  Nf6 {[%clk 0:15:44]} 2. c4 {[%clk 0:15:46]}  g6 {[%clk 0:15:44]} 3. Nf3 {[%clk 0:15:46]}  Bg7 {[%clk 0:15:44]} 4. g3 {[%clk 0:15:46]}  O-O {[%clk 0:15:44]} 5. Bg2 {[%clk 0:15:46]}  d6 {[%clk 0:15:44]} 6. O-O {[%clk 0:15:46]}  Nbd7 {[%clk 0:15:44]} 7. Qc2 {[%clk 0:16:28]}  e5 {[%clk 0:16:27]} 8. Rd1 {[%clk 0:16:28]}  exd4 {[%clk 0:16:27]} 9. Nxd4 {[%clk 0:16:28]}  a6 {[%clk 0:16:27]} 10. Nc3 {[%clk 0:16:28]}  Re8 {[%clk 0:16:27]} 11. b3 {[%clk 0:16:28]}  Rb8 {[%clk 0:16:27]} 12. h3 {[%clk 0:16:28]}  Ne5 {[%clk 0:16:27]} 13. e4 {[%clk 0:16:28]}  c5 {[%clk 0:16:27]} 14. Nde2 {[%clk 0:16:28]}  b5 {[%clk 0:16:27]} 15. cxb5 {[%clk 0:16:28]}  axb5 {[%clk 0:16:27]} 16. Bf4 {[%clk 0:15:29]}  b4 {[%clk 0:16:53]} 17. Na4 {[%clk 0:15:23]}  Qe7 {[%clk 0:16:30]} 18. Rac1 {[%clk 0:15:23]}  Ba6 {[%clk 0:16:30]} 19. Rd2 {[%clk 0:15:23]}  Bb5 {[%clk 0:15:42]} 20. Nb2 {[%clk 0:14:58]}  Nfd7 {[%clk 0:15:42]} 21. Rcd1 {[%clk 0:14:07]}  Ra8 {[%clk 0:15:42]} 22. Nc1 {[%clk 0:14:07]}  Ra6 {[%clk 0:15:42]} 23. Be3 {[%clk 0:13:56]}  Nf6 {[%clk 0:15:35]} 24. g4 {[%clk 0:12:20]}  h6 {[%clk 0:12:57]} 25. f4 {[%clk 0:09:18]}  Ned7 {[%clk 0:12:57]} 26. e5 {[%clk 0:09:18]}  dxe5 {[%clk 0:12:57]} 27. f5 {[%clk 0:09:18]}  gxf5 {[%clk 0:11:47]} 28. Qxf5 {[%clk 0:09:23]}  e4 {[%clk 0:11:00]} 29. Nc4 {[%clk 0:09:26]}  Bxc4 {[%clk 0:08:47]} 30. Rxd7 {[%clk 0:09:09]}  Nxd7 {[%clk 0:08:47]} 31. Rxd7 {[%clk 0:09:09]}  Qh4 {[%clk 0:08:47]} 32. Bf2 {[%clk 0:09:09]}  Qg5 {[%clk 0:08:35]} 33. Qxg5 {[%clk 0:08:24]}  hxg5 {[%clk 0:08:35]} 34. bxc4 {[%clk 0:08:24]}  Bb2 {[%clk 0:08:35]} 35. Nb3 {[%clk 0:08:12]}  Rxa2 {[%clk 0:06:39]} 36. Bxc5 {[%clk 0:08:12]}  Ra3 {[%clk 0:06:39]} 37. Nd4 {[%clk 0:08:06]}  Rd3 {[%clk 0:05:21]} 38. Rd5 {[%clk 0:07:54]}  Rd1+ {[%clk 0:03:45]} 39. Bf1 {[%clk 0:01:19]}  e3 {[%clk 0:00:36]} 40. Rxg5+ {[%clk 0:01:19]}  Kh7 {[%clk 0:00:36]} 41. Ne2 {[%clk 0:01:19]}  b3 {[%clk 0:00:36]} 42. Rh5+ {[%clk 0:01:19]}  Kg8 {[%clk 0:00:36]} 43. Rg5+ {[%clk 0:01:19]}  Bg7 {[%clk 0:00:36]} 44. Bd4 {[%clk 0:01:19]}  Rxd4 {[%clk 0:00:36]} 45. Nxd4 {[%clk 0:01:19]}  b2 {[%clk 0:00:36]} 46. Bd3 {[%clk 0:01:19]}  e2 {[%clk 0:00:36]} 47. Nxe2 {[%clk 0:01:19]}  Re3 {[%clk 0:00:36]} 48. Bb1 {[%clk 0:01:19]}  Rxe2 {[%clk 0:00:36]} 49. Rf5 {[%clk 0:01:19]}  Bd4+ {[%clk 0:00:36]} 50. Kf1 {[%clk 0:01:19]}  Rh2 {[%clk 0:00:36]} 51. Be4 {[%clk 0:01:19]}  Rh1+ {[%clk 0:00:36]} 52. Ke2 {[%clk 0:01:19]}  b1=Q {[%clk 0:00:36]} 53. Bxb1 {[%clk 0:01:19]}  Rxb1 {[%clk 0:00:36]} 54. Kd3 {[%clk 0:01:19]}  Bg1 {[%clk 0:00:36]} 55. Ke4 {[%clk 0:01:19]}  Re1+ {[%clk 0:00:36]} 56. Kd5 {[%clk 0:01:19]}  Rd1+ {[%clk 0:00:36]} 57. Kc6 {[%clk 0:01:19]}  Rd3 {[%clk 0:00:36]} 58. h4 {[%clk 0:01:19]}  Rd4 {[%clk 0:00:36]} 59. Rg5+ {[%clk 0:01:19]}  Kf8 {[%clk 0:00:36]} 60. c5 {[%clk 0:01:19]}  Rc4 {[%clk 0:00:36]} 61. Kb5 {[%clk 0:01:19]}  Rc1 {[%clk 0:00:36]} 62. Rf5 {[%clk 0:01:19]}  Ke7 {[%clk 0:00:36]} 63. g5 {[%clk 0:01:19]}  Bd4 {[%clk 0:00:36]} 64. Rd5 {[%clk 0:01:19]}  Bf2 {[%clk 0:00:36]} 65. Re5+ {[%clk 0:01:19]}  Kd7 {[%clk 0:00:36]} 66. h5 {[%clk 0:01:19]}  Rb1+ {[%clk 0:00:36]} 67. Kc4 {[%clk 0:01:19]}  Rc1+ {[%clk 0:00:36]} 68. Kb5 {[%clk 0:01:19]}  Rb1+ {[%clk 0:00:36]} 69. Kc4 {[%clk 0:01:19]}  Bg3 {[%clk 0:00:36]} 70. Rf5 {[%clk 0:01:19]}  Ke6 {[%clk 0:00:36]} 71. Rf6+ {[%clk 0:01:19]}  Ke7 {[%clk 0:00:36]} 72. Rf3 {[%clk 0:01:19]}  Be5 {[%clk 0:00:36]} 73. Kd5 {[%clk 0:01:19]}  Bb8 {[%clk 0:00:36]} 74. g6 {[%clk 0:01:19]}  fxg6 {[%clk 0:00:36]} 75. hxg6 {[%clk 0:01:19]}  Rg1 {[%clk 0:00:36]} 76. Rf7+ {[%clk 0:01:19]}  Ke8 {[%clk 0:00:36]} 77. Rb7 {[%clk 0:01:19]}  Rg5+ {[%clk 0:00:36]} 78. Kc4 {[%clk 0:01:19]}  Be5 {[%clk 0:00:36]} 79. Rb6 {[%clk 0:01:19]}  Ke7 {[%clk 0:00:36]} 80. Ra6 {[%clk 0:01:19]}  Bf6 {[%clk 0:00:36]} 81. Ra7+ {[%clk 0:01:19]}  Ke6 {[%clk 0:00:36]} 82. Ra6+ {[%clk 0:01:19]}  Ke5 {[%clk 0:00:36]} 83. c6 {[%clk 0:01:19]}  Bd8 {[%clk 0:00:36]} 84. Ra7 {[%clk 0:01:19]}  Rxg6 {[%clk 0:00:36]} 85. c7 {[%clk 0:01:19]}  Rc6+ {[%clk 0:00:36]} 86. Kb5 {[%clk 0:01:19]}  Rxc7 {[%clk 0:00:36]} 87. Rxc7 {[%clk 0:01:19]}  Bxc7 {[%clk 0:00:36]} 1/2-1/2


[Site "http://www.Chess.com"]

[Event "FIDE World Rapid Chess Championship 2021"]
[White "Janik, Igor"]
[Black "Mamedov, Rauf"]
[WhiteFideId "1159259"]
[BlackFideId "13401653"]
[WhiteElo "2462"]
[BlackElo "2690"]
[Result "0-1"]
[Round "03"]
[TimeControl "900+10"]
[Date "2021.12.26"]
[WhiteClock "0:00:14"]
[BlackClock "0:01:41"]

1. d4 {[%clk 0:15:25]}  d5 {[%clk 0:15:17]} 2. c4 {[%clk 0:15:25]}  c6 {[%clk 0:15:17]} 3. Nf3 {[%clk 0:15:25]}  Nf6 {[%clk 0:15:17]} 4. Nc3 {[%clk 0:15:25]}  dxc4 {[%clk 0:15:35]} 5. a4 {[%clk 0:15:56]}  e6 {[%clk 0:15:35]} 6. e3 {[%clk 0:15:56]}  c5 {[%clk 0:15:35]} 7. Bxc4 {[%clk 0:15:56]}  cxd4 {[%clk 0:15:35]} 8. exd4 {[%clk 0:15:56]}  Be7 {[%clk 0:15:35]} 9. O-O {[%clk 0:15:56]}  O-O {[%clk 0:15:35]} 10. Qe2 {[%clk 0:16:10]}  Nc6 {[%clk 0:15:04]} 11. Rd1 {[%clk 0:16:10]}  Nd5 {[%clk 0:15:03]} 12. Qe4 {[%clk 0:14:30]}  Nf6 {[%clk 0:12:37]} 13. Qh4 {[%clk 0:14:30]}  Nb4 {[%clk 0:12:37]} 14. Ne5 {[%clk 0:14:30]}  Bd7 {[%clk 0:12:45]} 15. Bg5 {[%clk 0:13:59]}  Bc6 {[%clk 0:12:45]} 16. Nxc6 {[%clk 0:13:34]}  bxc6 {[%clk 0:09:40]} 17. Ne4 {[%clk 0:09:59]}  Nfd5 {[%clk 0:09:47]} 18. Bxd5 {[%clk 0:09:40]}  Nxd5 {[%clk 0:07:15]} 19. Bxe7 {[%clk 0:08:25]}  Nxe7 {[%clk 0:07:22]} 20. Nc5 {[%clk 0:08:25]}  Rb8 {[%clk 0:07:22]} 21. b3 {[%clk 0:05:51]}  Rb4 {[%clk 0:07:27]} 22. Qe4 {[%clk 0:00:14]}  Qd6 {[%clk 0:01:41]} 23. Qe5 {[%clk 0:00:14]}  Rd8 {[%clk 0:01:41]} 24. Ne4 {[%clk 0:00:14]}  Qd7 {[%clk 0:01:41]} 25. Nc5 {[%clk 0:00:14]}  Qd6 {[%clk 0:01:41]} 26. Ne4 {[%clk 0:00:14]}  Qd5 {[%clk 0:01:41]} 27. Nc5 {[%clk 0:00:14]}  Nf5 {[%clk 0:01:41]} 28. Qxd5 {[%clk 0:00:14]}  Rxd5 {[%clk 0:01:41]} 29. Rac1 {[%clk 0:00:14]}  h5 {[%clk 0:01:41]} 30. Kf1 {[%clk 0:00:14]}  Nxd4 {[%clk 0:01:41]} 31. Rd3 {[%clk 0:00:14]}  Kf8 {[%clk 0:01:41]} 32. Rcc3 {[%clk 0:00:14]}  Ke7 {[%clk 0:01:41]} 33. Na6 {[%clk 0:00:14]}  Rb6 {[%clk 0:01:41]} 34. Nc5 {[%clk 0:00:14]}  h4 {[%clk 0:01:41]} 35. h3 {[%clk 0:00:14]}  e5 {[%clk 0:01:41]} 36. Re3 {[%clk 0:00:14]}  f5 {[%clk 0:01:41]} 37. Red3 {[%clk 0:00:14]}  Kd6 {[%clk 0:01:41]} 38. a5 {[%clk 0:00:14]}  Rb5 {[%clk 0:01:41]} 0-1


[Site "http://www.Chess.com"]

[Event "FIDE World Rapid Chess Championship 2021"]
[White "Postny, Evgeny"]
[Black "Howell, David W L"]
[WhiteFideId "2804344"]
[BlackFideId "410608"]
[WhiteElo "2454"]
[BlackElo "2624"]
[Result "0-1"]
[Round "03"]
[TimeControl "900+10"]
[Date "2021.12.26"]
[WhiteClock "0:02:27"]
[BlackClock "0:07:34"]

1. e4 {[%clk 0:15:26]}  e5 {[%clk 0:15:26]} 2. Nf3 {[%clk 0:15:26]}  Nc6 {[%clk 0:15:26]} 3. Bb5 {[%clk 0:15:26]}  Nge7 {[%clk 0:15:26]} 4. Nc3 {[%clk 0:15:26]}  Ng6 {[%clk 0:15:26]} 5. d4 {[%clk 0:15:58]}  exd4 {[%clk 0:15:57]} 6. Nxd4 {[%clk 0:15:58]}  Nxd4 {[%clk 0:15:57]} 7. Qxd4 {[%clk 0:15:58]}  c6 {[%clk 0:15:57]} 8. Be2 {[%clk 0:15:58]}  Qb6 {[%clk 0:15:57]} 9. Qd3 {[%clk 0:15:58]}  Be7 {[%clk 0:15:57]} 10. O-O {[%clk 0:15:58]}  O-O {[%clk 0:15:57]} 11. Be3 {[%clk 0:15:45]}  Qxb2 {[%clk 0:15:32]} 12. f4 {[%clk 0:15:04]}  Qa3 {[%clk 0:14:33]} 13. Bd4 {[%clk 0:10:33]}  d6 {[%clk 0:14:19]} 14. f5 {[%clk 0:09:19]}  Ne5 {[%clk 0:13:13]} 15. Qg3 {[%clk 0:09:19]}  Kh8 {[%clk 0:12:58]} 16. f6 {[%clk 0:05:46]}  gxf6 {[%clk 0:10:50]} 17. Qh4 {[%clk 0:05:46]}  Rg8 {[%clk 0:10:50]} 18. Rxf6 {[%clk 0:05:46]}  Rg6 {[%clk 0:10:39]} 19. Raf1 {[%clk 0:05:44]}  Qb4 {[%clk 0:09:18]} 20. Nb5 {[%clk 0:05:04]}  cxb5 {[%clk 0:07:34]} 21. c3 {[%clk 0:02:27]}  Qb2 {[%clk 0:07:34]} 0-1


[Site "http://www.Chess.com"]